fUSD/lending_fUSD_20241210
["ID","MTS","AMOUNT","RATE_DAILY","PERIOD"]
[344817131,1733803847764,-786.17,0.00011099,2]
[344817132,1733803847773,-786.17,0.00011099,2]
[344817133,1733803847782,-786.17,0.00011099,2]
[344817134,1733803847791,-7500.0,0.00011099,2]
[344817135,1733803847801,-786.17,0.00011099,2]
[344817136,1733803847810,-7500.0,0.00011099,2]
[344817137,1733803847819,-786.17,0.00011099,2]
[344817138,1733803847829,-7500.0,0.00011099,2]
[344817139,1733803847838,-786.17,0.00011099,2]
[344817140,1733803847847,-7500.0,0.00011099,2]
[344817141,1733803847856,-7500.0,0.00011099,2]
[344817142,1733803847866,-786.17,0.00011099,2]
[344817143,1733803847875,-7500.0,0.00011099,2]
[344817144,1733803847884,-786.17,0.00011099,2]
[344817145,1733803847894,-7500.0,0.00011099,2]
[344817146,1733803847904,-786.17,0.00011099,2]
[344817147,1733803847913,-7500.0,0.00011099,2]
[344817148,1733803847923,-786.17,0.00011099,2]
[344817149,1733803847932,-7500.0,0.00011099,2]
[344817150,1733803847942,-786.17,0.00011099,2]
[344817151,1733803847951,-2828.23504144,0.00011099,2]
[344817152,1733803847961,-786.17,0.00011099,2]
[344817153,1733803847971,-786.17,0.00011099,2]
[344817154,1733803847980,-786.17,0.00011099,2]
[344817155,1733803847992,-786.17,0.00011099,2]
[344817156,1733803848001,-786.17,0.00011099,2]
[344817157,1733803848011,-786.17,0.00011099,2]
[344817158,1733803848020,-786.17,0.00011099,2]
[344817159,1733803848029,-786.17,0.00011099,2]
[344817160,1733803848039,-786.17,0.00011099,2]
[344817161,1733803848048,-786.36334281,0.00011099,2]
[344817162,1733803848058,-1632.7,0.00011099,2]
[344817163,1733803848067,-1632.7,0.00011099,2]
[344817164,1733803848076,-1632.7,0.00011099,2]
[344817165,1733803848086,-1632.7,0.00011099,2]
[344817166,1733803848095,-1632.7,0.00011099,2]
[344817167,1733803848104,-1632.7,0.00011099,2]
[344817168,1733803848114,-500.0,0.00011099,2]
[344817169,1733803848124,-1632.7,0.00011099,2]
[344817170,1733803848133,-500.0,0.00011099,2]
[344817171,1733803848142,-500.0,0.00011099,2]
[344817172,1733803848151,-1632.7,0.00011099,2]
[344817173,1733803848160,-500.0,0.00011099,2]
[344817174,1733803848170,-500.0,0.00011099,2]
[344817175,1733803848179,-1632.7,0.00011099,2]
[344817176,1733803848189,-500.0,0.00011099,2]
[344817177,1733803848198,-1632.7,0.00011099,2]
[344817178,1733803848208,-625.42590601,0.00011099,2]
[344817179,1733803848218,-1632.7,0.00011099,2]
[344817180,1733803848228,-1632.7,0.00011099,2]
[344817181,1733803848240,-1632.7,0.00011099,2]
[344817182,1733803848250,-1632.7,0.00011099,2]
[344817183,1733803848260,-1632.7,0.00011099,2]
[344817184,1733803848270,-1632.7,0.00011099,2]
[344817185,1733803848280,-1632.7,0.00011099,2]
[344817186,1733803848290,-1632.7,0.00011099,2]
[344817187,1733803848300,-1632.7,0.00011099,2]
[344817188,1733803848309,-1632.7,0.00011099,2]
[344817189,1733803848319,-1632.7,0.00011099,2]
[344817190,1733803848328,-1632.7,0.00011099,2]
[344817191,1733803848339,-500.0,0.00011099,2]
[344817192,1733803848348,-500.0,0.00011099,2]
[344817193,1733803848357,-1632.86115453,0.00011099,2]
[344817194,1733803848366,-500.0,0.00011099,2]
[344817195,1733803848376,-500.0,0.00011099,2]
[344817196,1733803848385,-479.84662098,0.00011099,2]
[344817197,1733803848394,-605.97,0.00011099,2]
[344817198,1733803848404,-605.97,0.00011099,2]
[344817199,1733803848413,-605.97,0.00011099,2]
[344817200,1733803848423,-605.97,0.00011099,2]
[344817201,1733803848432,-605.97,0.00011099,2]
[344817202,1733803848441,-605.97,0.00011099,2]
[344817203,1733803848451,-605.97,0.00011099,2]
[344817204,1733803848460,-605.97,0.00011099,2]
[344817205,1733803848469,-605.97,0.00011099,2]
[344817206,1733803848479,-605.97,0.00011099,2]
[344817207,1733803848491,-605.97,0.00011099,2]
[344817208,1733803848500,-605.97,0.00011099,2]
[344817209,1733803848510,-605.97,0.00011099,2]
[344817210,1733803848519,-605.97,0.00011099,2]
[344817211,1733803848529,-605.97,0.00011099,2]
[344817212,1733803848538,-605.97,0.00011099,2]
[344817213,1733803848547,-605.97,0.00011099,2]
[344817214,1733803848557,-605.97,0.00011099,2]
[344817215,1733803848567,-605.97,0.00011099,2]
[344817216,1733803848576,-605.97,0.00011099,2]
[344817217,1733803848586,-605.97,0.00011099,2]
[344817218,1733803848595,-605.97,0.00011099,2]
[344817219,1733803848605,-606.14,0.00011099,2]
[344817220,1733803848618,-500.0,0.00011099,2]
[344817221,1733803848627,-500.0,0.00011099,2]
[344817222,1733803848637,-500.0,0.00011099,2]
[344817223,1733803848647,-500.0,0.00011099,2]
[344817224,1733803848656,-500.0,0.00011099,2]
[344817225,1733803848665,-500.0,0.00011099,2]
[344817226,1733803848674,-500.0,0.00011099,2]
[344817227,1733803848684,-500.0,0.00011099,2]
[344817228,1733803848694,-500.0,0.00011099,2]
[344817229,1733803848704,-320.32916855,0.00011099,2]
[344817230,1733803848714,-257.06397405,0.00011099,2]
[344817231,1733803848723,-500.0,0.00011099,2]
[344817232,1733803848733,-500.0,0.00011099,2]
[344817233,1733803848744,-500.0,0.00011099,2]
[344817234,1733803848754,-500.0,0.00011099,2]
[344817235,1733803848763,-500.0,0.00011099,2]
[344817236,1733803848772,-424.48519185,0.00011099,2]
[344817237,1733803848782,-500.0,0.00011099,2]
[344817238,1733803848791,-500.0,0.00011099,2]
[344817239,1733803848801,-500.0,0.00011099,2]
[344817240,1733803848810,-500.0,0.00011099,2]
[344817241,1733803848820,-500.0,0.00011099,2]
[344817242,1733803848829,-500.0,0.00011099,2]
[344817243,1733803848839,-500.0,0.00011099,2]
[344817244,1733803848849,-500.0,0.00011099,2]
[344817245,1733803848858,-500.0,0.00011099,2]
[344817246,1733803848867,-500.0,0.00011099,2]
[344817247,1733803848877,-500.0,0.00011099,2]
[344817248,1733803848887,-500.0,0.00011099,2]
[344817249,1733803848897,-500.0,0.00011099,2]
[344817250,1733803848906,-500.0,0.00011099,2]
[344817251,1733803848915,-500.0,0.00011099,2]
[344817252,1733803848925,-500.0,0.00011099,2]
[344817253,1733803848935,-500.0,0.00011099,2]
[344817254,1733803848944,-273.99777805,0.00011099,2]
[344817255,1733803848953,-1737.47,0.00011099,2]
[344817256,1733803848963,-1737.47,0.00011099,2]
[344817257,1733803848972,-1737.47,0.00011099,2]
[344817258,1733803848981,-1737.47,0.00011099,2]
[344817259,1733803848994,-1737.47,0.00011099,2]
[344817260,1733803849005,-500.0,0.00011099,2]
[344817261,1733803849014,-1737.47,0.00011099,2]
[344817262,1733803849024,-500.0,0.00011099,2]
[344817263,1733803849034,-1737.47,0.00011099,2]
[344817264,1733803849043,-500.0,0.00011099,2]
[344817265,1733803849053,-1737.47,0.00011099,2]
[344817266,1733803849063,-1737.47,0.00011099,2]
[344817267,1733803849072,-500.0,0.00011099,2]
[344817268,1733803849081,-1737.47,0.00011099,2]
[344817269,1733803849091,-500.0,0.00011099,2]
[344817270,1733803849100,-1737.47,0.00011099,2]
[344817271,1733803849110,-500.0,0.00011099,2]
[344817272,1733803849123,-500.0,0.00011099,2]
[344817273,1733803849132,-1073.0,0.00011099,2]
[344817274,1733803849141,-4324184.74673901,0.000111,2]
[344817275,1733803849151,-150918.0749765,0.000111,2]
[344817276,1733803849160,-12793328.38992904,0.000111,2]
[344817277,1733803849655,-500.0,0.00010958,2]
[344817278,1733803849666,-515.87,0.00011098,2]
[344817279,1733803849675,-784.13,0.00011099,2]
[344817280,1733803849688,-599.05410725,0.00011099,2]
[344817281,1733803849699,-354.28589275,0.00011099,2]
[344817282,1733803849708,-500.0,0.00011099,2]
[344817283,1733803849718,-1737.47,0.00011099,2]
[344817284,1733803849727,-500.0,0.00011099,2]
[344817285,1733803849738,-1737.47,0.00011099,2]
[344817286,1733803849748,-500.0,0.00011099,2]
[344817287,1733803849757,-1737.47,0.00011099,2]
[344817288,1733803849767,-500.0,0.00011099,2]
[344817289,1733803849776,-1737.47,0.00011099,2]
[344817290,1733803849786,-500.0,0.00011099,2]
[344817291,1733803849795,-500.0,0.00011099,2]
[344817292,1733803849805,-398810.24096614,0.000111,2]
[344817293,1733803849825,-2006657.00844542,0.000111,2]
[344817294,1733803849836,-117986.05759685,0.000111,2]
[344817295,1733803849848,-36096.8444935,0.000111,2]
[344817296,1733803849859,-849.41419005,0.000111,2]
[344817297,1733803849870,-1564.25660773,0.000111,2]
[344817298,1733803849882,-1007.52312096,0.000111,2]
[344817299,1733803849893,-453.57828422,0.000111,2]
[344817300,1733803849926,-1737.47,0.00011099,2]
[344817301,1733803849936,-9685.98525492,0.000111,2]
[344817302,1733803849948,-38630.95734359,0.000111,2]
[344817303,1733803849959,-2334.25286798,0.000111,2]
[344817304,1733803850213,-327.18,0.00011099,2]
[344817305,1733803850233,-500.0,0.00011098,2]
[344817306,1733803850250,-172.82,0.00011099,2]
[344817307,1733803850259,-1737.47,0.00011099,2]
[344817308,1733803850274,-240.63855244,0.00011099,2]
[344817309,1733803850285,-528.46618385,0.00011099,2]
[344817310,1733803850297,-1209.00381615,0.00011099,2]
[344817311,1733803850307,-1737.47,0.00011099,2]
[344817312,1733803850317,-277.57412291,0.00011099,2]
[344817313,1733803850328,-1054.45388422,0.00011099,2]
[344817314,1733803850367,-405.44199287,0.00011099,2]
[344817315,1733803850377,-594.55800713,0.00011099,2]
[344817316,1733803850388,-1142.91199287,0.00011099,2]
[344817317,1733803850398,-1737.67220167,0.00011099,2]
[344817318,1733803850408,-2407.65350499,0.000111,2]
[344817319,1733803850424,-400.92458373,0.000111,2]
[344817320,1733803850484,-500.0,0.00011099,2]
[344817321,1733803850498,-500.0,0.00011099,2]
[344817322,1733803850508,-500.0,0.00011099,2]
[344817323,1733803850518,-500.0,0.00011099,2]
[344817324,1733803850527,-2322.409692,0.000111,2]
[344817325,1733803850539,-2150.399975,0.000111,2]
[344817328,1733804105126,155.0,0.000111,30]
[344817329,1733804404505,155.0,0.000111,30]
[344817331,1733804705917,155.0,0.000111,30]
[344817377,1733805004298,155.0,0.000111,30]
[344817392,1733805032121,-3324.45701858,6.94e-05,2]
[344817393,1733805032199,-421.02,6.94e-05,2]
[344817394,1733805032255,-2203.20354804,6.94e-05,2]
[344817405,1733805037906,-6416.19974721,6.94e-05,2]
[344817406,1733805037916,-590.02,8.219e-05,2]
[344817407,1733805037925,-150.0,8.391e-05,2]
[344817408,1733805037934,-250.0,9.171e-05,2]
[344817409,1733805037943,-523.56,9.426e-05,2]
[344817410,1733805037952,-200.0,9.784e-05,2]
[344817411,1733805037962,-19949.73,9.846e-05,2]
[344817412,1733805037971,-500.0,9.9e-05,3]
[344817413,1733805037981,-2500.0,9.9e-05,2]
[344817414,1733805037994,-566.48,9.907e-05,2]
[344817415,1733805038004,-645.25,9.917e-05,2]
[344817416,1733805038018,-10871.75545353,9.95e-05,2]
[344817417,1733805038027,-1000.0,9.965e-05,2]
[344817418,1733805038036,-167.43232862,9.973e-05,2]
[344817419,1733805038046,-500.0,9.973e-05,2]
[344817420,1733805038056,-166.95,9.994e-05,2]
[344817421,1733805038069,-500.0,9.999e-05,2]
[344817422,1733805038079,-365.25932048,9.999e-05,2]
[344817423,1733805038089,-500.0,9.999e-05,2]
[344817424,1733805038103,-500.0,9.999e-05,2]
[344817425,1733805038113,-500.0,9.999e-05,2]
[344817426,1733805038123,-500.0,9.999e-05,2]
[344817427,1733805038133,-500.0,9.999e-05,2]
[344817428,1733805038142,-500.0,9.999e-05,2]
[344817429,1733805038152,-500.0,9.999e-05,2]
[344817430,1733805038162,-189.24360345,9.999e-05,2]
[344817431,1733805038171,-500.0,9.999e-05,2]
[344817432,1733805038181,-500.0,9.999e-05,2]
[344817433,1733805038191,-500.0,9.999e-05,2]
[344817434,1733805038200,-37049.86826671,0.0001,2]
[344817435,1733805038212,-2417.17981382,0.0001,2]
[344817436,1733805038223,-1510.02748616,0.0001,2]
[344817437,1733805038242,-2102.31172098,0.0001,2]
[344817438,1733805038260,-1099815.23179877,0.0001,2]
[344817439,1733805038269,-1100.0,0.0001,3]
[344817440,1733805038279,-10192.53889335,0.0001,3]
[344817441,1733805038288,-150.0,0.00010068,2]
[344817442,1733805038298,-500.0,0.0001011,2]
[344817443,1733805038307,-500.0,0.0001011,2]
[344817444,1733805038319,-500.0,0.0001011,2]
[344817445,1733805038328,-1600.0,0.000102,3]
[344817446,1733805038338,-2200.0,0.000103,3]
[344817447,1733805038347,-2800.0,0.000104,3]
[344817448,1733805038357,-590.02,0.00010447,2]
[344817449,1733805038367,-500.0,0.000105,3]
[344817450,1733805038376,-888.09,0.00010546,2]
[344817451,1733805038385,-452.357,0.0001055,2]
[344817452,1733805038395,-500.0,0.000106,3]
[344817453,1733805038404,-500.0,0.000107,3]
[344817454,1733805038413,-500.0,0.000108,3]
[344817456,1733805038423,-1052.0,0.000108,2]
[344817458,1733805038435,-6769.928,0.00010898,2]
[344817460,1733805038445,-1000.0,0.000109,3]
[344817462,1733805038453,-156.653328,0.00010958,2]
[344817464,1733805038462,-156.653328,0.00010958,2]
[344817466,1733805038471,-1163.451655,0.00010958,2]
[344817468,1733805038480,-156.653328,0.00010958,2]
[344817470,1733805038489,-1163.451655,0.00010958,2]
[344817472,1733805038498,-156.653328,0.00010958,2]
[344817474,1733805038507,-1163.451655,0.00010958,2]
[344817476,1733805038516,-156.653328,0.00010958,2]
[344817478,1733805038525,-1163.451655,0.00010958,2]
[344817480,1733805038534,-1163.451655,0.00010958,2]
[344817481,1733805038543,-1163.451655,0.00010958,2]
[344817483,1733805038552,-156.653328,0.00010958,2]
[344817486,1733805038561,-156.653328,0.00010958,2]
[344817488,1733805038572,-1163.451655,0.00010958,2]
[344817489,1733805038581,-156.653328,0.00010958,2]
[344817491,1733805038590,-1163.451655,0.00010958,2]
[344817493,1733805038599,-1163.451655,0.00010958,2]
[344817495,1733805038608,-156.653328,0.00010958,2]
[344817497,1733805038618,-1163.451655,0.00010958,2]
[344817499,1733805038627,-156.653328,0.00010958,2]
[344817501,1733805038637,-1163.451655,0.00010958,2]
[344817503,1733805038647,-156.653328,0.00010958,2]
[344817504,1733805038656,-1163.451655,0.00010958,2]
[344817505,1733805038665,-1163.451655,0.00010958,2]
[344817506,1733805038675,-1163.451655,0.00010958,2]
[344817507,1733805038684,-1163.451655,0.00010958,2]
[344817508,1733805038693,-1163.451655,0.00010958,2]
[344817509,1733805038702,-1163.451655,0.00010958,2]
[344817510,1733805038711,-1163.451655,0.00010958,2]
[344817511,1733805038720,-1163.451655,0.00010958,2]
[344817512,1733805038730,-1163.451655,0.00010958,2]
[344817513,1733805038739,-1163.451655,0.00010958,2]
[344817514,1733805038748,-1163.451655,0.00010958,2]
[344817515,1733805038757,-1163.451655,0.00010958,2]
[344817516,1733805038766,-1163.451655,0.00010958,2]
[344817517,1733805038775,-500.0,0.00010958,2]
[344817518,1733805038784,-559.85,0.00010958,2]
[344817519,1733805038793,-500.0,0.00010958,2]
[344817520,1733805038803,-521.44,0.00010958,2]
[344817521,1733805038812,-500.0,0.00010958,2]
[344817522,1733805038824,-500.0,0.00010958,2]
[344817523,1733805038833,-500.0,0.00010958,2]
[344817524,1733805038841,-500.0,0.00010958,2]
[344817525,1733805038850,-500.0,0.00010958,2]
[344817526,1733805038860,-500.0,0.00010958,2]
[344817527,1733805038869,-343.86388558,0.00010958,2]
[344817528,1733805038878,-633.62,0.00010958,2]
[344817529,1733805038887,-500.0,0.00010958,2]
[344817530,1733805038896,-500.0,0.00010958,2]
[344817531,1733805038905,-500.0,0.00010958,2]
[344817532,1733805038914,-500.0,0.00010958,2]
[344817533,1733805038923,-500.0,0.00010958,2]
[344817534,1733805038932,-198.13611853,0.00010958,2]
[344817535,1733805038941,-7500.0,0.00010958,2]
[344817536,1733805038951,-7500.0,0.00010958,2]
[344817537,1733805038960,-7500.0,0.00010958,2]
[344817538,1733805038969,-7500.0,0.00010958,2]
[344817539,1733805038978,-7500.0,0.00010958,2]
[344817540,1733805038987,-500.0,0.00010958,2]
[344817541,1733805038996,-500.0,0.00010958,2]
[344817542,1733805039005,-500.0,0.00010958,2]
[344817543,1733805039019,-500.0,0.00010958,2]
[344817544,1733805039029,-500.0,0.00010958,2]
[344817545,1733805039038,-500.0,0.00010958,2]
[344817546,1733805039047,-500.0,0.00010958,2]
[344817547,1733805039056,-500.0,0.00010958,2]
[344817548,1733805039066,-500.0,0.00010958,2]
[344817549,1733805039076,-500.0,0.00010958,2]
[344817550,1733805039086,-500.0,0.00010958,2]
[344817551,1733805039097,-500.0,0.00010958,2]
[344817552,1733805039107,-500.0,0.00010958,2]
[344817553,1733805039115,-500.0,0.00010958,2]
[344817554,1733805039125,-500.0,0.00010958,2]
[344817555,1733805039135,-507.82991371,0.00010958,2]
[344817556,1733805039144,-500.75749071,0.00010958,2]
[344817557,1733805039154,-532.1,0.00010958,2]
[344817558,1733805039163,-532.1,0.00010958,2]
[344817559,1733805039172,-532.1,0.00010958,2]
[344817560,1733805039181,-532.1,0.00010958,2]
[344817561,1733805039190,-532.1,0.00010958,2]
[344817562,1733805039200,-500.0,0.00010958,2]
[344817563,1733805039209,-500.0,0.00010958,2]
[344817564,1733805039218,-500.0,0.00010958,2]
[344817565,1733805039228,-500.0,0.00010958,2]
[344817566,1733805039238,-500.0,0.00010958,2]
[344817567,1733805039248,-500.0,0.00010958,2]
[344817568,1733805039257,-500.0,0.00010958,2]
[344817569,1733805039267,-500.0,0.00010958,2]
[344817570,1733805039276,-500.0,0.00010958,2]
[344817571,1733805039285,-500.0,0.00010958,2]
[344817572,1733805039295,-500.0,0.00010958,2]
[344817573,1733805039305,-500.0,0.00010958,2]
[344817574,1733805039314,-500.0,0.00010958,2]
[344817575,1733805039328,-500.0,0.00010958,2]
[344817576,1733805039337,-500.0,0.00010958,2]
[344817577,1733805039346,-501.04569807,0.00010958,2]
[344817578,1733805039356,-3000.0,0.0001099,2]
[344817579,1733805039365,-500.0,0.00011097,2]
[344817580,1733805039376,-500.0,0.00011097,2]
[344817581,1733805039385,-521.44,0.00011097,2]
[344817582,1733805039395,-500.0,0.00011097,2]
[344817583,1733805039404,-500.0,0.00011097,2]
[344817584,1733805039413,-500.0,0.00011097,2]
[344817585,1733805039422,-500.0,0.00011097,2]
[344817586,1733805039432,-271.21,0.00011097,2]
[344817587,1733805039442,-500.0,0.00011097,2]
[344817588,1733805039452,-500.0,0.00011097,2]
[344817589,1733805039461,-500.0,0.00011097,2]
[344817590,1733805039470,-500.0,0.00011097,2]
[344817591,1733805039480,-532.1,0.00011097,2]
[344817592,1733805039489,-500.0,0.00011097,2]
[344817593,1733805039498,-500.0,0.00011097,2]
[344817594,1733805039507,-500.0,0.00011097,2]
[344817595,1733805039516,-500.0,0.00011098,2]
[344817596,1733805039526,-300.0,0.00011098,2]
[344817597,1733805039537,-300.0,0.00011098,2]
[344817598,1733805039546,-300.0,0.00011098,2]
[344817599,1733805039555,-300.0,0.00011098,2]
[344817600,1733805039564,-300.0,0.00011098,2]
[344817601,1733805039580,-300.0,0.00011098,2]
[344817602,1733805039590,-502.46732222,0.00011098,2]
[344817603,1733805039599,-500.69043139,0.00011098,2]
[344817604,1733805039609,-300.0,0.00011098,3]
[344817605,1733805039619,-300.0,0.00011098,3]
[344817606,1733805039628,-300.0,0.00011098,3]
[344817607,1733805039638,-300.0,0.00011098,3]
[344817608,1733805039649,-300.0,0.00011098,3]
[344817609,1733805039659,-300.0,0.00011098,3]
[344817610,1733805039668,-500.0,0.00011098,2]
[344817611,1733805039678,-322.94261411,0.00011098,2]
[344817612,1733805039687,-500.0,0.00011098,2]
[344817613,1733805039696,-500.0,0.00011098,2]
[344817614,1733805039705,-300.0,0.00011098,2]
[344817615,1733805039714,-300.0,0.00011098,2]
[344817616,1733805039723,-300.0,0.00011098,2]
[344817617,1733805039732,-300.0,0.00011098,2]
[344817618,1733805039741,-500.0,0.00011098,2]
[344817619,1733805039751,-500.0,0.00011098,2]
[344817620,1733805039760,-500.0,0.00011098,2]
[344817621,1733805039770,-421.12674823,0.00011098,2]
[344817622,1733805039779,-500.0,0.00011098,2]
[344817623,1733805039788,-500.0,0.00011098,2]
[344817624,1733805039797,-500.0,0.00011098,2]
[344817625,1733805039806,-300.0,0.00011098,3]
[344817626,1733805039815,-300.0,0.00011098,3]
[344817627,1733805039828,-501.11430844,0.00011098,2]
[344817628,1733805039838,-231.66442002,0.00011098,3]
[344817629,1733805039848,-500.5012665,0.00011098,2]
[344817630,1733805039858,-300.0,0.00011098,3]
[344817631,1733805039868,-542.31,0.00011098,2]
[344817632,1733805039877,-398.74029467,0.00011098,2]
[344817633,1733805039886,-500.0,0.00011098,2]
[344817634,1733805039895,-500.0,0.00011098,2]
[344817635,1733805039903,-512.3929581,0.00011098,2]
[344817636,1733805039912,-500.0,0.00011098,2]
[344817637,1733805039922,-500.0,0.00011098,2]
[344817638,1733805039931,-152.31202386,0.00011098,2]
[344817639,1733805039940,-150.0,0.00011098,2]
[344817640,1733805039950,-159.43262305,0.00011098,2]
[344817641,1733805039960,-500.0,0.00011098,2]
[344817642,1733805039970,-5012.8682624,0.00011098,2]
[344817643,1733805039979,-500.0,0.00011098,2]
[344817644,1733805039988,-332.71677575,0.00011098,2]
[344817645,1733805039997,-500.0,0.00011098,2]
[344817646,1733805040007,-500.0,0.00011098,2]
[344817647,1733805040019,-500.0,0.00011098,2]
[344817648,1733805040028,-518.49551989,0.00011098,2]
[344817649,1733805040037,-500.0,0.00011098,2]
[344817650,1733805040046,-500.0,0.00011098,2]
[344817651,1733805040056,-522.01185624,0.00011098,2]
[344817652,1733805040066,-511.78,0.00011098,2]
[344817653,1733805040081,-500.0,0.00011098,2]
[344817654,1733805040092,-500.8920861,0.00011098,2]
[344817655,1733805040101,-500.0,0.00011098,2]
[344817656,1733805040111,-500.0,0.00011098,2]
[344817657,1733805040120,-500.53708989,0.00011098,2]
[344817658,1733805040129,-500.56274578,0.00011098,2]
[344817659,1733805040138,-503.31691685,0.00011098,2]
[344817660,1733805040148,-500.0,0.00011098,2]
[344817661,1733805040157,-500.0,0.00011098,2]
[344817662,1733805040166,-500.0,0.00011098,2]
[344817663,1733805040176,-521.76480912,0.00011098,2]
[344817664,1733805040185,-500.0,0.00011098,2]
[344817665,1733805040194,-500.0,0.00011098,2]
[344817666,1733805040203,-500.0,0.00011098,2]
[344817667,1733805040213,-500.0,0.00011098,2]
[344817668,1733805040223,-204.21305078,0.00011098,2]
[344817669,1733805040232,-500.0,0.00011098,2]
[344817670,1733805040241,-500.0,0.00011098,2]
[344817671,1733805040250,-2901.66,0.00011098,2]
[344817672,1733805040260,-500.0,0.00011098,2]
[344817673,1733805040269,-1736.698,0.00011098,2]
[344817674,1733805040278,-500.0,0.00011098,2]
[344817675,1733805040287,-500.0,0.00011098,2]
[344817676,1733805040296,-506.95583931,0.00011098,2]
[344817677,1733805040306,-500.0,0.00011098,2]
[344817678,1733805040315,-500.0,0.00011098,2]
[344817679,1733805040327,-500.0,0.00011098,2]
[344817680,1733805040336,-500.0,0.00011098,2]
[344817681,1733805040345,-500.0,0.00011098,2]
[344817682,1733805040355,-500.0,0.00011098,2]
[344817683,1733805040363,-521.44,0.00011098,2]
[344817684,1733805040373,-521.44,0.00011098,2]
[344817685,1733805040382,-521.44,0.00011098,2]
[344817686,1733805040391,-536.39066547,0.00011098,2]
[344817687,1733805040400,-500.0,0.00011098,2]
[344817688,1733805040409,-500.0,0.00011098,2]
[344817689,1733805040418,-500.0,0.00011098,2]
[344817690,1733805040427,-500.0,0.00011098,2]
[344817691,1733805040436,-416.26563079,0.00011098,2]
[344817692,1733805040445,-500.0,0.00011098,2]
[344817693,1733805040454,-500.0,0.00011098,2]
[344817694,1733805040462,-500.0,0.00011098,2]
[344817695,1733805040471,-500.0,0.00011098,2]
[344817696,1733805040480,-500.0,0.00011098,2]
[344817697,1733805040489,-500.0,0.00011098,2]
[344817698,1733805040498,-500.0,0.00011098,2]
[344817699,1733805040507,-500.0,0.00011098,2]
[344817700,1733805040516,-265.54305267,0.00011098,2]
[344817701,1733805040525,-500.0,0.00011098,2]
[344817702,1733805040535,-500.0,0.00011098,2]
[344817703,1733805040543,-500.0,0.00011098,2]
[344817704,1733805040552,-500.0,0.00011098,2]
[344817705,1733805040561,-500.0,0.00011098,2]
[344817706,1733805040574,-500.0,0.00011098,2]
[344817707,1733805040583,-500.0,0.00011098,2]
[344817708,1733805040592,-500.0,0.00011098,2]
[344817709,1733805040601,-500.0,0.00011098,2]
[344817710,1733805040610,-500.0,0.00011098,2]
[344817711,1733805040619,-489.38932652,0.00011098,2]
[344817712,1733805040628,-500.0,0.00011098,2]
[344817713,1733805040638,-500.0,0.00011098,2]
[344817714,1733805040647,-500.0,0.00011098,2]
[344817715,1733805040657,-500.0,0.00011098,2]
[344817716,1733805040666,-500.0,0.00011098,2]
[344817717,1733805040675,-500.0,0.00011098,2]
[344817718,1733805040684,-500.0,0.00011098,2]
[344817719,1733805040693,-500.0,0.00011098,2]
[344817720,1733805040703,-500.0,0.00011098,2]
[344817721,1733805040712,-500.0,0.00011098,2]
[344817722,1733805040721,-500.0,0.00011098,2]
[344817723,1733805040730,-461.92,0.00011098,2]
[344817724,1733805040739,-500.0,0.00011098,2]
[344817725,1733805040749,-500.0,0.00011098,2]
[344817726,1733805040758,-283.11989586,0.00011098,2]